bitfinex-derivatives/quotes_SOLF0:USTF0_20250518
["timestamp","ask_amount","ask_price","bid_price","bid_amount"]
[1747536334787,58.84,166.86,166.74,64.11475689]
[1747536334988,58.84,166.85,166.76,58.84]
[1747536335185,58.84,166.86,166.76,58.84]
[1747536335186,117.68,166.86,166.76,58.84]
[1747536335488,5.992,166.84,166.81,5.9925]
[1747536338103,117.68,166.86,166.78,58.84]
[1747536338392,117.68,166.86,166.74,5.29475689]
[1747536338393,5.29475689,166.83,166.68,11.07898922]
[1747536338593,123.771,166.82,166.68,11.07898922]
[1747536339204,5.9941,166.78,166.73,5.9954]
[1747536339794,5.9941,166.78,166.74,5.9953]
[1747536340397,5.9943,166.77,166.74,5.9953]
[1747536341899,5.9939,166.79,166.72,58.84]
[1747536342900,5.9939,166.79,166.73,4.96302349]
[1747536343702,5.9939,166.79,166.76,5.9946]
[1747536345705,5.9931,166.81,166.72,64.13475689]
[1747536345902,58.84,166.83,166.73,5.7409]
[1747536346094,4.0298,166.87,166.75,5.29475689]
[1747536346296,58.9,166.86,166.76,117.74]
[1747536346800,69.98815507,166.88,166.78,5.29475689]
[1747536347004,11.14815507,166.88,166.79,5.8322]
[1747536347191,11.14815507,166.88,166.85,5.9913]
[1747536348602,17.13855507,166.88,166.85,5.9913]
[1747536348804,58.9,166.9,166.81,4.96455116]
[1747536349005,3.9357,166.89,166.81,4.96455116]
[1747536350406,5.9918,166.85,166.8,123.7331]
[1747536351005,5.9912,166.86,166.8,117.74]
[1747536351303,64.9112,166.86,166.8,58.84]
[1747536351509,58.92,166.86,166.8,58.84]
[1747536352502,62.8757,166.89,166.8,58.84]
[1747536353005,62.8757,166.89,166.81,4.96034524]
[1747536353205,62.8757,166.89,166.84,5.9916]
[1747536353206,5.9906,166.88,166.84,5.9916]
[1747536354805,68.8658,166.89,166.85,5.9913]
[1747536355205,62.8757,166.89,166.85,5.9913]
[1747536355406,62.8757,166.89,166.84,5.9917]
[1747536355605,5.9908,166.87,166.84,5.9917]
[1747536359010,62.8357,166.89,166.81,58.94]
[1747536359206,1.9157,166.89,166.81,58.94]
[1747536359605,5.9902,166.89,166.86,5.991]
[1747536359908,117.72,166.9,166.81,58.94]
[1747536360407,5.9903,166.88,166.85,5.9911]
[1747536360601,58.84,166.9,166.81,58.94]
[1747536360803,117.7,166.9,166.81,58.94]
[1747536360998,5.9904,166.88,166.85,5.9912]
[1747536361207,117.7,166.9,166.8,58.84]
[1747536361896,117.7,166.9,166.8,64.833]
[1747536362510,5.29475689,166.88,166.77,58.9]
[1747536362808,3.9601,166.87,166.77,58.9]
[1747536363012,5.9928,166.82,166.78,5.9936]
[1747536363310,5.9928,166.82,166.77,58.9]
[1747536363610,5.9923,166.83,166.79,5.9933]
[1747536363809,117.82,166.86,166.77,58.9]
[1747536364309,5.9917,166.85,166.81,5.9926]
[1747536364610,5.9917,166.85,166.77,58.9]
[1747536364809,58.96,166.88,166.78,5.29475689]
[1747536365007,58.96,166.88,166.79,58.96]
[1747536365513,64.9506,166.88,166.85,5.9914]
[1747536366313,5.9907,166.87,166.85,5.9914]
[1747536367114,5.9907,166.87,166.84,5.9916]
[1747536367311,64.9504,166.88,166.84,5.9916]
[1747536367610,58.9,166.9,166.82,58.9]
[1747536367814,60.8642,166.91,166.83,58.96]
[1747536368018,58.96,166.92,166.83,58.96]
[1747536368215,58.96,166.92,166.83,60.9791]
[1747536368407,5.9892,166.92,166.83,60.9791]
[1747536368816,5.9892,166.92,166.83,65.93504388]
[1747536369115,5.9892,166.92,166.88,5.9901]
[1747536369316,5.9893,166.91,166.88,5.9901]
[1747536370525,5.9897,166.9,166.87,5.9906]
[1747536374818,5.9894,166.91,166.87,5.9906]
[1747536375017,5.9894,166.91,166.88,5.9903]
[1747536378524,5.9897,166.9,166.87,5.9907]
[1747536378827,58.9,166.93,166.86,58.9]
[1747536379113,5.9895,166.91,166.88,5.9902]
[1747536379322,58.9,166.93,166.86,58.9]
[1747536380521,5.9895,166.91,166.87,5.9904]
[1747536381222,5.9895,166.91,166.88,5.9902]
[1747536381422,5.989,166.92,166.86,58.9]
[1747536381818,58.9,166.93,166.89,5.9896]
[1747536382020,5.9887,166.93,166.86,58.9]
[1747536382420,61.039,166.94,166.89,5.9897]
[1747536382926,5.9891,166.92,166.89,5.9897]
[1747536383629,5.9893,166.91,166.88,5.9902]
[1747536384123,5.989,166.92,166.89,5.9899]
[1747536384324,3.9697,166.96,166.87,59.04]
[1747536384527,59.04,166.96,166.87,64.33475689]
[1747536384727,65.0275,166.96,166.93,5.9883]
[1747536385228,5.9875,166.96,166.93,5.9883]
[1747536393646,60.8143,167.0,166.9,58.9]
[1747536393947,14.90065507,167.02,166.93,5.29475689]
[1747536393948,11.14815507,167.02,166.93,5.29475689]
[1747536394250,11.14815507,167.02,166.99,5.9861]
[1747536394438,11.14815507,167.02,166.95,58.98]
[1747536394841,5.9863,167.0,166.96,5.9872]
[1747536395041,58.96,167.01,166.96,5.9872]
[1747536395451,58.96,167.01,166.94,58.96]
[1747536396351,58.96,167.01,166.96,5.9874]
[1747536396651,58.96,167.01,166.94,58.96]
[1747536397051,5.987,166.98,166.94,58.96]
[1747536398451,5.987,166.98,166.95,5.9878]
[1747536399350,5.987,166.98,166.94,64.948]
[1747536400048,5.987,166.98,166.95,5.9876]
[1747536400753,5.9865,166.99,166.96,5.9874]
[1747536403353,5.9867,166.98,166.94,58.96]
[1747536404160,5.9867,166.98,166.94,64.948]
[1747536404353,58.96,167.01,166.91,58.96]
[1747536404756,5.9884,166.94,166.91,64.949]
[1747536406062,5.9885,166.93,166.91,58.96]
[1747536409163,5.9883,166.94,166.91,58.96]
[1747536410060,5.9883,166.94,166.91,64.9492]
[1747536414868,58.94,166.97,166.92,5.9889]
[1747536415160,58.94,166.97,166.91,58.96]
[1747536415462,5.9876,166.96,166.93,5.9883]
[1747536417468,5.9878,166.95,166.92,5.9888]
[1747536420674,117.88,166.99,166.91,58.96]
[1747536420878,1.9117,166.98,166.88,60.8485]
[1747536421469,5.9882,166.94,166.91,5.989]
[1747536423578,1.9117,166.98,166.88,60.8485]
[1747536424678,5.9875,166.96,166.93,5.9883]
[1747536425680,5.9875,166.96,166.94,5.9881]
[1747536426183,5.9872,166.97,166.95,5.9878]
[1747536426369,117.84,166.99,166.92,58.88]
[1747536426573,58.88,167.02,166.92,58.88]
[1747536426773,117.78,167.02,166.92,64.17475689]
[1747536427075,5.9864,166.99,166.92,64.17475689]
[1747536427582,5.9864,166.99,166.97,5.9871]
[1747536427791,5.9862,167.0,166.97,5.9871]
[1747536428081,11.13044775,167.03,166.96,58.88]
[1747536428281,11.13044775,167.03,166.97,58.88]
[1747536428581,117.78,167.05,166.97,58.88]
[1747536428884,5.9847,167.04,167.01,5.9857]
[1747536429685,5.9847,167.04,167.0,5.9859]
[1747536429881,117.78,167.05,166.97,58.88]
[1747536430277,117.78,167.05,166.98,5.9866]
[1747536430481,117.78,167.05,166.97,58.88]
[1747536431587,5.9847,167.04,167.01,5.9857]
[1747536433088,123.7643,167.05,167.02,5.9853]
[1747536433787,5.9843,167.05,167.02,5.9853]
[1747536434984,64.904,167.06,167.02,5.9853]
[1747536435185,5.984,167.06,167.02,5.9853]
[1747536435387,5.9843,167.05,167.02,5.9853]
[1747536435586,5.9843,167.05,167.01,5.9856]
[1747536436689,5.9843,167.05,167.02,5.9853]
[1747536436990,5.9846,167.04,166.98,58.9]
[1747536437185,5.9846,167.04,167.01,5.9855]
[1747536437687,5.9844,167.05,167.01,5.9855]
[1747536437886,5.9844,167.05,167.02,5.9853]
[1747536438993,5.9847,167.04,167.01,5.9856]
[1747536439290,5.9847,167.04,166.98,60.8699]
[1747536439492,5.9847,167.04,167.0,5.9858]
[1747536440095,5.9847,167.04,167.01,5.9856]
[1747536441691,58.86,167.07,166.98,60.8699]
[1747536441995,58.86,167.07,166.97,58.88]
[1747536442496,5.9859,167.01,166.98,5.9866]
[1747536442691,58.86,167.03,166.97,58.88]
[1747536443982,58.86,167.03,166.96,5.9873]
[1747536444287,58.86,167.03,166.94,58.86]
[1747536444487,60.8794,167.03,166.94,58.86]
[1747536444688,3.9611,167.02,166.94,58.86]
[1747536444991,5.987,166.98,166.94,64.848]
[1747536446590,5.987,166.98,166.95,5.9877]
[1747536449297,5.9865,166.99,166.95,5.9877]
[1747536450697,5.9865,166.99,166.96,5.9874]
[1747536452192,5.9868,166.98,166.95,5.9878]
[1747536452390,5.9868,166.98,166.94,58.86]
[1747536452885,5.9868,166.98,166.95,5.9877]
[1747536453197,5.9865,166.99,166.95,5.9877]
[1747536455003,5.9865,166.99,166.96,5.9874]
[1747536457704,5.986,167.01,166.98,5.9865]
[1747536457897,58.78,167.03,166.94,58.86]
[1747536458507,64.7652,167.03,167.0,5.986]
[1747536458696,5.9852,167.03,167.0,5.986]
[1747536461998,5.9852,167.03,166.99,5.9862]
[1747536462498,5.9853,167.02,166.99,5.9862]
[1747536462906,58.86,167.04,167.0,5.986]
[1747536463307,5.9851,167.03,167.0,5.986]
[1747536463503,58.86,167.04,166.96,58.78]
[1747536463708,58.76,167.05,166.97,58.78]
[1747536463909,60.6629,167.06,166.97,58.78]
[1747536464209,117.54,167.07,166.97,58.78]
[1747536464406,117.54,167.07,167.03,5.9847]
[1747536464709,5.9841,167.06,167.03,5.9847]
[1747536465011,117.54,167.07,167.02,5.9852]
[1747536465302,117.54,167.07,166.99,4.96031302]
[1747536465609,117.54,167.07,167.01,5.9855]
[1747536466111,5.9845,167.05,167.01,5.9855]
[1747536466410,117.54,167.07,167.01,5.9855]
[1747536466611,5.9845,167.05,167.01,5.9855]
[1747536467012,117.54,167.07,167.01,5.9855]
[1747536467417,117.54,167.07,166.98,2.0102]
[1747536468216,5.9846,167.04,167.01,5.9855]
[1747536471715,117.56,167.07,166.98,2.0102]
[1747536472019,58.76,167.09,166.98,7.30495689]
[1747536472319,5.9836,167.07,166.98,7.30495689]
[1747536472516,5.9836,167.07,166.99,4.96218314]
[1747536472718,5.9836,167.07,167.0,58.78]
[1747536472914,5.9836,167.07,167.04,5.9844]
[1747536475631,117.52,167.1,167.01,58.76]
[1747536477731,5.984,167.06,167.03,5.9849]
[1747536478227,58.76,167.1,167.01,58.76]
[1747536478433,59.52,167.12,167.02,5.27705065]
[1747536478635,11.13044775,167.14,167.05,5.27705065]
[1747536478838,11.13044775,167.14,167.06,58.76]
[1747536479834,17.11144775,167.14,167.09,5.9825]
[1747536480436,11.13044775,167.14,167.06,58.76]
[1747536480733,5.9807,167.15,167.06,60.6787]
[1747536480934,5.9807,167.15,167.1,5.9822]
[1747536481236,5.9807,167.15,167.06,60.6787]
[1747536482435,5.9807,167.15,167.1,5.9823]
[1747536483634,5.9814,167.13,167.06,60.6787]
[1747536483839,61.04,167.16,167.06,60.6787]
[1747536484336,5.9811,167.14,167.09,5.9828]
[1747536486240,5.9814,167.13,167.09,5.9828]
[1747536487237,5.9811,167.14,167.1,5.9824]
[1747536487839,5.9814,167.13,167.09,5.9827]
[1747536492440,61.04,167.16,167.08,5.9831]
[1747536492745,5.8531,167.15,167.08,5.9831]
[1747536493340,5.9818,167.12,167.08,5.9831]
[1747536493541,66.7018,167.12,167.08,5.9831]
[1747536494445,66.7018,167.12,167.09,5.9828]
[1747536495747,60.72,167.12,167.06,60.9]
[1747536497245,5.9814,167.14,167.1,5.9822]
[1747536498445,5.9814,167.13,167.1,5.9822]
[1747536500352,5.9811,167.14,167.11,5.9821]
[1747536500645,1.9995,167.15,167.06,66.17705065]
[1747536500846,60.58,167.16,167.06,66.17705065]
[1747536501649,5.9809,167.15,167.12,5.9816]
[1747536501850,58.76,167.17,167.1,60.88]
[1747536502245,64.7402,167.17,167.14,5.9807]
[1747536502449,5.9802,167.17,167.14,5.9807]
[1747536503252,5.9803,167.16,167.13,5.9812]
[1747536503953,5.9801,167.17,167.13,5.9812]
[1747536505852,5.9804,167.16,167.13,5.9812]
[1747536506154,60.54,167.18,167.1,60.88]
[1747536507556,5.9811,167.14,167.11,5.982]
[1747536509753,5.9808,167.15,167.12,5.9817]
[1747536512859,5.9808,167.15,167.11,5.982]
[1747536513059,60.54,167.18,167.11,5.982]
[1747536513260,5.9811,167.14,167.11,5.982]
[1747536514365,5.9808,167.15,167.12,5.9817]
[1747536514562,60.54,167.18,167.1,60.88]
[1747536515066,5.9802,167.17,167.13,5.9811]
[1747536515853,5.9803,167.16,167.13,5.9811]
[1747536521268,11.13044775,167.19,167.1,60.88]
[1747536521462,60.1,167.18,167.1,60.88]
[1747536521958,11.13044775,167.19,167.1,60.88]
[1747536522157,11.13044775,167.19,167.12,5.27705065]
[1747536522357,11.13044775,167.19,167.12,65.53705065]
[1747536522565,11.13044775,167.19,167.17,5.9797]
[1747536523967,5.9789,167.2,167.17,5.9797]
[1747536525468,17.10894775,167.22,167.18,5.9795]
[1747536525969,11.13044775,167.22,167.15,5.27705065]
[1747536526172,11.13044775,167.22,167.16,60.28]
[1747536526561,11.13044775,167.22,167.21,5.9785]
[1747536526757,1.86464775,167.22,167.21,66.1385]
[1747536526967,11.12790581,167.26,167.21,65.43705065]
[1747536527168,11.12790581,167.26,167.25,5.9771]
[1747536528071,11.12790581,167.26,167.24,5.9774]
[1747536529968,60.24,167.3,167.24,5.9774]
[1747536530368,60.2,167.3,167.24,5.9774]
[1747536531173,5.9764,167.27,167.24,5.9774]
[1747536532579,60.2,167.3,167.2,60.14]
[1747536533384,5.978,167.23,167.2,60.14]
[1747536534180,5.9783,167.22,167.2,60.14]
[1747536534378,5.9783,167.22,167.18,66.1195]
[1747536534679,66.0166,167.26,167.17,60.14]
[1747536534885,5.9786,167.21,167.17,66.1197]
[1747536535482,5.9783,167.22,167.18,5.9795]
[1747536539180,5.9786,167.21,167.18,5.9795]
[1747536540287,5.9786,167.21,167.17,60.14]
[1747536540887,5.979,167.2,167.17,66.1198]
[1747536541484,5.9786,167.21,167.17,66.1198]
[1747536544394,5.9786,167.21,167.17,60.14]
[1747536544790,5.9791,167.2,167.17,66.1197]
[1747536545090,5.9791,167.2,167.17,60.14]
[1747536546491,66.0166,167.26,167.17,60.14]
[1747536546992,5.978,167.23,167.19,5.979]
[1747536550295,66.0166,167.26,167.19,5.979]
[1747536550486,65.8366,167.26,167.17,60.14]
[1747536551190,5.9777,167.24,167.2,5.9787]
[1747536551391,65.8366,167.26,167.17,60.14]
[1747536552693,5.9783,167.22,167.19,5.9791]
[1747536553291,5.9786,167.21,167.18,5.9795]
[1747536555294,5.9786,167.21,167.17,66.1198]
[1747536556397,5.9786,167.21,167.18,5.9796]
[1747536556697,65.8366,167.26,167.18,5.9796]
[1747536557198,5.9785,167.21,167.17,66.1198]
[1747536558999,5.9782,167.22,167.17,60.14]
[1747536559601,5.978,167.23,167.19,5.979]
[1747536560698,5.978,167.23,167.2,5.9787]
[1747536562198,5.9782,167.22,167.19,5.9791]
[1747536562399,65.6366,167.26,167.17,60.14]
[1747536562903,59.74,167.27,167.18,59.74]
[1747536563703,5.9777,167.24,167.18,59.74]
[1747536564102,59.74,167.27,167.18,59.74]
[1747536564301,59.74,167.27,167.2,5.9787]
[1747536565304,59.74,167.27,167.18,5.9793]
[1747536565603,5.9784,167.22,167.18,5.9793]
[1747536565805,59.88,167.25,167.18,5.9793]
[1747536566002,59.88,167.25,167.17,60.14]
[1747536566003,1.8659,167.24,167.17,66.1198]
[1747536566203,5.9793,167.19,167.17,60.14]
[1747536567003,59.7,167.23,167.17,66.1199]
[1747536567500,59.7,167.23,167.17,60.14]
[1747536567707,59.7,167.23,167.18,5.9794]
[1747536568704,5.9785,167.21,167.18,5.9794]
[1747536571616,5.9783,167.22,167.18,5.9794]
[1747536572420,5.9786,167.21,167.18,5.9794]
[1747536573816,5.979,167.2,167.17,66.1198]
[1747536574113,59.7,167.23,167.17,60.14]
[1747536574716,5.9795,167.19,167.17,60.14]
[1747536574914,59.7,167.23,167.17,60.14]
[1747536575117,59.7,167.23,167.14,119.48]
[1747536575708,5.9788,167.21,167.17,5.9799]
[1747536575909,5.9788,167.21,167.14,119.48]
[1747536577321,5.9788,167.21,167.17,5.9797]
[1747536577521,5.979,167.2,167.17,5.9797]
[1747536579523,5.979,167.2,167.16,5.9802]
[1747536579723,5.9793,167.19,167.16,5.9802]
[1747536580024,59.58,167.22,167.17,5.9799]
[1747536580426,5.9792,167.2,167.14,59.88]
[1747536581227,5.9793,167.19,167.16,5.9801]
[1747536581421,59.58,167.22,167.14,59.88]
[1747536581827,59.58,167.22,167.15,5.9806]
[1747536582419,5.9795,167.19,167.15,5.9806]
[1747536583325,5.9796,167.18,167.15,5.9806]
[1747536585024,5.979,167.2,167.16,5.98]
[1747536585225,65.1655,167.24,167.14,59.88]
[1747536586529,5.978,167.23,167.15,5.16500907]
[1747536586724,5.978,167.23,167.16,59.44]
[1747536587128,5.978,167.23,167.2,5.9788]
[1747536588431,5.9782,167.22,167.19,5.9791]
[1747536589130,5.9779,167.23,167.19,5.9791]
[1747536589330,5.7055,167.24,167.18,5.9795]
[1747536589931,5.7055,167.24,167.17,5.9798]
[1747536590532,5.9788,167.21,167.17,5.9798]
[1747536591931,5.9783,167.22,167.14,59.88]
[1747536592233,5.7055,167.24,167.14,59.88]
[1747536592427,5.9787,167.21,167.17,5.9797]
[1747536593238,5.979,167.2,167.17,5.9797]
[1747536593434,5.7055,167.24,167.16,5.9803]
[1747536593625,5.7055,167.24,167.14,59.88]
[1747536593822,5.9798,167.18,167.14,59.88]
[1747536594027,5.9798,167.18,167.14,65.8609]
[1747536595543,5.9798,167.18,167.15,5.9806]
[1747536596541,5.9793,167.19,167.16,5.9803]
[1747536596834,59.66,167.2,167.14,59.88]
[1747536597740,59.66,167.2,167.17,5.9796]
[1747536598838,65.6389,167.2,167.17,5.9796]
[1747536599142,5.9789,167.2,167.17,5.9796]
[1747536599533,5.9789,167.2,167.18,5.9796]
[1747536600242,5.9786,167.21,167.18,5.9796]
[1747536600738,65.7383,167.22,167.19,5.9792]
[1747536601436,5.9778,167.23,167.14,59.88]
[1747536602044,5.9778,167.23,167.2,5.9788]
[1747536602546,5.9782,167.22,167.15,5.15087399]
[1747536603445,5.9782,167.22,167.19,5.979]
[1747536604749,5.9782,167.22,167.18,5.9795]
[1747536605047,5.9786,167.21,167.18,5.9795]
[1747536605344,124.9055,167.24,167.17,65.4999]
[1747536605742,5.9788,167.21,167.17,65.4999]
[1747536607041,5.9788,167.21,167.18,5.9795]
[1747536609256,5.9783,167.22,167.18,5.9795]
[1747536610045,5.9786,167.21,167.18,5.9795]
[1747536610451,5.9786,167.21,167.17,65.4998]
[1747536611357,5.9786,167.21,167.18,5.9795]
[1747536612959,124.7855,167.24,167.17,59.52]
[1747536613762,5.9781,167.23,167.19,5.979]
[1747536614357,5.9784,167.22,167.19,5.979]
[1747536616161,5.9784,167.22,167.2,5.9788]
[1747536616355,5.978,167.23,167.2,5.9788]
[1747536617163,5.9782,167.22,167.19,5.9791]
[1747536618565,5.7055,167.24,167.18,3.37154645]
[1747536618860,62.81154645,167.26,167.18,3.37154645]
[1747536619462,5.9777,167.24,167.21,5.9785]
[1747536620360,5.9779,167.23,167.2,5.9787]
[1747536621462,5.9775,167.24,167.21,5.9785]
[1747536621658,59.38,167.26,167.2,3.37154645]
[1747536622160,5.9772,167.25,167.2,3.37154645]
[1747536622870,5.9772,167.25,167.22,5.9779]
[1747536623566,68.88284645,167.3,167.22,3.37154645]
[1747536623862,124.9113,167.3,167.24,3.37154645]
[1747536624066,5.9758,167.29,167.26,5.9767]
[1747536624562,5.9758,167.29,167.24,3.37154645]
[1747536624862,5.9758,167.29,167.26,5.9766]
[1747536626166,5.976,167.28,167.25,5.977]
[1747536626358,9.32284645,167.3,167.22,3.37154645]
[1747536626762,5.9768,167.26,167.22,3.37154645]
[1747536627064,9.32284645,167.3,167.22,3.37154645]
[1747536627265,5.9774,167.25,167.21,65.5384]
[1747536627864,5.9774,167.25,167.22,5.9781]
[1747536628667,5.9774,167.25,167.21,65.5384]
[1747536628966,59.34,167.27,167.18,59.54]
[1747536629154,59.34,167.27,167.19,5.979]
[1747536629361,59.34,167.27,167.18,59.54]
[1747536629868,59.34,167.27,167.2,5.9788]
[1747536630768,5.9779,167.23,167.2,5.9788]
[1747536632467,5.9776,167.24,167.2,5.9788]
[1747536633468,5.9776,167.24,167.21,5.9785]
[1747536633671,59.54,167.26,167.18,59.54]
[1747536633869,59.34,167.27,167.18,59.54]
[1747536634170,5.977,167.26,167.22,5.9779]
[1747536635367,5.9765,167.27,167.23,5.9775]
[1747536635573,59.32,167.29,167.2,5.26613869]
[1747536635873,59.32,167.29,167.21,59.32]
[1747536636066,65.2957,167.29,167.26,5.9765]
[1747536637172,59.32,167.29,167.27,5.9764]
[1747536637369,5.9513,167.3,167.22,59.54]
[1747536638073,5.9513,167.3,167.27,5.9761]
[1747536638466,5.9513,167.3,167.22,59.54]
[1747536638670,5.9757,167.29,167.26,5.9766]
[1747536639470,11.9267,167.3,167.26,5.9766]
[1747536642277,11.9267,167.3,167.27,5.9763]
[1747536646076,11.9267,167.3,167.26,5.9766]
[1747536647480,5.9757,167.29,167.26,5.9766]
[1747536648876,11.9267,167.3,167.26,5.9766]
[1747536649178,5.9513,167.3,167.26,5.9766]
[1747536650579,5.9757,167.29,167.26,5.9766]
[1747536651479,11.9267,167.3,167.27,5.9762]
[1747536651677,5.9513,167.3,167.27,5.9762]
[1747536652776,11.9266,167.3,167.27,5.9762]
[1747536652967,3.36893674,167.32,167.28,5.976]
[1747536653171,62.42893674,167.32,167.28,5.976]
[1747536654078,59.06,167.32,167.28,5.976]
[1747536654378,59.06,167.32,167.29,5.9754]
[1747536655573,65.0348,167.32,167.27,5.976]
[1747536655782,59.06,167.32,167.27,5.976]
[1747536656082,118.56,167.33,167.26,68.56553674]
[1747536656580,5.9755,167.3,167.26,68.56553674]
[1747536656789,118.56,167.33,167.26,68.56553674]
[1747536658081,3.36893674,167.32,167.26,59.22]
[1747536658278,118.56,167.33,167.24,59.2]
[1747536658279,3.36893674,167.3,167.24,59.2]
[1747536658582,59.0,167.29,167.24,59.2]
[1747536658883,5.9766,167.27,167.24,59.2]
[1747536661585,5.9761,167.28,167.24,65.1773]
[1747536661977,59.0,167.29,167.24,59.2]
[1747536662484,5.9766,167.27,167.24,59.2]
[1747536664286,5.9767,167.26,167.24,59.2]
[1747536664984,5.9764,167.27,167.24,59.2]
[1747536665287,59.0,167.29,167.24,59.2]
[1747536665688,5.9766,167.27,167.24,59.2]
[1747536668495,5.9767,167.26,167.24,59.2]
[1747536668683,59.0,167.29,167.24,59.2]
[1747536669094,5.9766,167.27,167.24,59.2]
[1747536671493,59.0,167.29,167.24,59.2]
[1747536671887,117.94,167.29,167.21,123.9182]
[1747536672391,117.94,167.29,167.21,64.9182]
[1747536673091,117.94,167.29,167.21,58.94]
[1747536674291,5.9777,167.24,167.21,58.94]
[1747536675393,5.9778,167.23,167.2,5.9787]
[1747536675694,5.9778,167.23,167.19,5.979]
[1747536678591,5.9782,167.22,167.18,64.9395]
[1747536678802,58.96,167.25,167.18,64.9395]
[1747536679002,58.96,167.25,167.18,58.96]
[1747536679998,5.9781,167.23,167.19,5.9792]
[1747536680597,5.9782,167.22,167.19,5.9792]
[1747536684201,117.92,167.25,167.19,3.37142148]
[1747536684502,58.96,167.25,167.19,3.37142148]
[1747536684689,5.9772,167.25,167.21,5.9783]
[1747536688006,5.9772,167.25,167.22,5.9781]
[1747536688504,5.9772,167.25,167.19,3.37142148]
[1747536688706,5.9772,167.25,167.21,5.9784]
[1747536689810,5.9774,167.24,167.2,5.9788]
[1747536690498,5.9774,167.24,167.19,3.37142148]
[1747536690499,3.37142148,167.25,167.19,5.9791]
[1747536691002,7.23402148,167.25,167.19,5.9791]
[1747536691204,5.9784,167.22,167.18,64.9395]
[1747536692405,7.23402148,167.25,167.18,58.96]
[1747536693608,5.9779,167.23,167.2,5.9786]
[1747536694003,5.9779,167.23,167.18,58.96]
[1747536694209,5.9779,167.23,167.19,5.9791]
[1747536695512,5.9782,167.22,167.19,5.9791]
[1747536703031,62.8226,167.25,167.19,3.37142148]
[1747536704627,68.7999,167.25,167.22,5.978]
[1747536704824,5.9773,167.25,167.22,5.978]
[1747536707231,5.9775,167.24,167.21,5.9784]
[1747536708931,3.37142148,167.25,167.18,58.96]
[1747536709320,5.978,167.23,167.19,5.9791]
[1747536709728,3.37142148,167.25,167.18,58.96]
[1747536709930,5.9774,167.25,167.19,3.37142148]
[1747536711525,5.9774,167.25,167.21,5.9783]
[1747536712026,5.9775,167.24,167.21,5.9783]
[1747536713832,5.9772,167.25,167.22,5.9781]
[1747536719128,5.9769,167.26,167.23,5.9778]
[1747536720738,58.96,167.28,167.21,3.37142148]
[1747536720938,117.92,167.28,167.22,58.96]
[1747536721235,58.96,167.28,167.22,58.96]
[1747536721737,5.9765,167.27,167.24,5.9772]
[1747536722036,5.9765,167.27,167.22,58.96]
[1747536722231,58.96,167.28,167.22,58.96]
[1747536723033,58.96,167.28,167.2,62.33142148]
[1747536723236,62.33142148,167.27,167.19,62.33142148]
[1747536723630,5.9785,167.21,167.19,62.33142148]
[1747536724030,5.9785,167.21,167.19,58.96]
[1747536724337,5.9789,167.2,167.19,58.96]
[1747536724540,5.9789,167.2,167.17,3.37142148]
[1747536724840,60.8543,167.24,167.17,3.37142148]
[1747536725241,3.37142148,167.23,167.16,64.94]